bitfinex/quotes_BTCUSD_20251114
["timestamp","ask_amount","ask_price","bid_price","bid_amount"]
[1763111148071,8.29012231,97500.0,97499.0,0.6542103]
[1763111148663,8.29012231,97500.0,97499.0,0.7642263]
[1763111148882,8.29012231,97500.0,97499.0,0.6532103]
[1763111149055,8.29012231,97500.0,97499.0,0.6512103]
[1763111149254,8.29012231,97500.0,97499.0,0.7551473]
[1763111149479,8.29012231,97500.0,97499.0,0.7561473]
[1763111150244,8.29012231,97500.0,97499.0,0.7551473]
[1763111150576,8.29012231,97500.0,97499.0,0.7571473]
[1763111151490,8.29012231,97500.0,97499.0,0.7581473]
[1763111151886,8.29012231,97500.0,97499.0,0.7571473]
[1763111152088,8.29012231,97500.0,97499.0,0.7551473]
[1763111152364,8.29012231,97500.0,97499.0,0.7561473]
[1763111152561,8.29012231,97500.0,97499.0,0.7581473]
[1763111153508,8.29012231,97500.0,97499.0,0.5311303]
[1763111153727,8.29012231,97500.0,97499.0,0.6542103]
[1763111153931,8.29012231,97500.0,97499.0,0.5311303]
[1763111154507,8.29012231,97500.0,97499.0,0.5301303]
[1763111154727,8.29012231,97500.0,97499.0,0.5311303]
[1763111155139,8.29012231,97500.0,97499.0,0.5291303]
[1763111155378,8.29012231,97500.0,97499.0,0.5281303]
[1763111155539,8.27345023,97500.0,97499.0,0.5291303]
[1763111157710,8.27345023,97500.0,97499.0,0.9291303]
[1763111157910,8.27345023,97500.0,97499.0,1.3114563]
[1763111158143,8.27345023,97500.0,97499.0,0.9114563]
[1763111158350,8.27345023,97500.0,97499.0,0.94187947]
[1763111158562,8.27345023,97500.0,97499.0,0.94287947]
[1763111158966,8.27345023,97500.0,97499.0,0.94187947]
[1763111159138,8.27345023,97500.0,97499.0,0.94387947]
[1763111159341,8.25011036,97500.0,97499.0,0.94387947]
[1763111160293,8.25011036,97500.0,97499.0,0.9134563]
[1763111160941,8.25011036,97500.0,97499.0,0.6384653]
[1763111161200,8.50886856,97500.0,97499.0,0.003]
[1763111161615,8.50886856,97500.0,97499.0,0.002]
[1763111161762,8.50886856,97500.0,97499.0,0.003]
[1763111161968,8.50886856,97500.0,97499.0,0.001]
[1763111161969,8.45523856,97500.0,97499.0,0.001]
[1763111162177,8.25011036,97500.0,97499.0,0.001]
[1763111162356,8.25011036,97500.0,97499.0,0.5291303]
[1763111162540,8.25011036,97500.0,97499.0,0.5281303]
[1763111163971,8.25011036,97500.0,97499.0,0.9152013]
[1763111164183,8.25011036,97500.0,97499.0,0.8663023]
[1763111164560,8.25011036,97500.0,97499.0,0.5281303]
[1763111164958,8.25011036,97500.0,97499.0,0.5291303]
[1763111165359,8.25011036,97500.0,97499.0,0.5281303]
[1763111165814,8.25011036,97500.0,97499.0,0.5291303]
[1763111166017,8.25011036,97500.0,97499.0,0.5281303]
[1763111166469,8.25011036,97500.0,97499.0,0.5291303]
[1763111167827,8.22676839,97500.0,97499.0,0.5291303]
[1763111167991,8.22676839,97500.0,97499.0,0.5281303]
[1763111168194,8.22676839,97500.0,97499.0,0.5291303]
[1763111168443,8.22676839,97500.0,97499.0,0.6014503]
[1763111168649,8.22676839,97500.0,97499.0,0.6004503]
[1763111168851,8.22676839,97500.0,97499.0,0.6014503]
[1763111169092,8.22676839,97500.0,97499.0,0.5291303]
[1763111169732,8.22676839,97500.0,97499.0,0.6014503]
[1763111169957,8.22676839,97500.0,97499.0,0.5291303]
[1763111171192,8.27840839,97500.0,97499.0,0.324]
[1763111171395,8.48353659,97500.0,97499.0,0.324]
[1763111171528,8.22676839,97500.0,97499.0,0.5291303]
[1763111171729,8.22676839,97500.0,97499.0,0.5281303]
[1763111171934,8.22676839,97500.0,97499.0,0.5291303]
[1763111172232,8.22676839,97500.0,97499.0,0.323]
[1763111172459,8.43189659,97500.0,97499.0,0.323]
[1763111172877,8.22676839,97500.0,97499.0,0.5281303]
[1763111174320,8.22676839,97500.0,97499.0,0.5291303]
[1763111174491,8.22676839,97500.0,97499.0,0.5281303]
[1763111174912,8.19598878,97500.0,97499.0,0.5797703]
[1763111175146,8.19598878,97500.0,97499.0,0.5787703]
[1763111175489,8.19598878,97500.0,97499.0,0.5797703]
[1763111176130,8.19598878,97500.0,97499.0,0.5291303]
[1763111177272,8.19598878,97500.0,97499.0,0.5281303]
[1763111177779,8.19598878,97500.0,97499.0,0.5291303]
[1763111177953,8.19598878,97500.0,97499.0,0.5281303]
[1763111178161,8.19598878,97500.0,97499.0,0.5291303]
[1763111178473,8.19598878,97500.0,97499.0,0.5281303]
[1763111178863,8.19598878,97500.0,97499.0,0.5291303]
[1763111180672,8.19598878,97500.0,97499.0,0.5281303]
[1763111180918,8.19598878,97500.0,97499.0,0.323]
[1763111181512,8.19598878,97500.0,97499.0,0.324]
[1763111181716,8.19598878,97500.0,97499.0,0.5281303]
[1763111182097,8.19598878,97500.0,97499.0,0.5291303]
[1763111182299,8.19598878,97500.0,97499.0,0.5281303]
[1763111184321,8.19598878,97500.0,97499.0,0.6004503]
[1763111184554,8.19598878,97500.0,97499.0,0.5281303]
[1763111185427,8.19598878,97500.0,97499.0,0.5291303]
[1763111186596,8.19598878,97500.0,97499.0,0.5486603]
[1763111186784,8.19598878,97500.0,97499.0,0.5281303]
[1763111186993,8.19598878,97500.0,97499.0,0.5291303]
[1763111187262,8.19598878,97500.0,97499.0,0.324]
[1763111188282,8.19598878,97500.0,97499.0,0.5291303]
[1763111189282,8.19598878,97500.0,97499.0,0.324]
[1763111189489,8.45275698,97500.0,97499.0,0.001]
[1763111190362,0.20514082,97494.0,97493.0,0.323]
[1763111190567,0.20514714,97491.0,97490.0,0.52]
[1763111190777,0.20514714,97491.0,97490.0,0.5]
[1763111190778,0.25626714,97491.0,97490.0,0.5]
[1763111191877,0.25626714,97491.0,97490.0,0.501]
[1763111192534,0.25726714,97491.0,97490.0,0.48650604]
[1763111192714,0.30068588,97491.0,97490.0,0.50650604]
[1763111192957,0.29968588,97491.0,97490.0,0.49999904]
[1763111194191,0.30068588,97491.0,97490.0,0.49999904]
[1763111194610,0.29968588,97491.0,97490.0,0.49999904]
[1763111195080,0.30068588,97491.0,97490.0,0.49999904]
[1763111195522,0.25726714,97491.0,97490.0,0.49999904]
[1763111196082,0.20515472,97488.0,97485.0,0.20515852]
[1763111196444,0.001,97491.0,97488.0,0.20515191]
[1763111196610,0.001,97491.0,97489.0,0.20515052]
[1763111196811,0.05112,97487.0,97486.0,0.20515566]
[1763111197243,0.00989,97494.0,97492.0,0.20514403]
[1763111197428,0.03834,97497.0,97490.0,0.02]
[1763111197748,0.03834,97497.0,97494.0,0.20513846]
[1763111197885,0.03834,97497.0,97495.0,0.20513678]
[1763111198308,0.2434758,97497.0,97494.0,0.2051401]
[1763111198542,0.03834,97497.0,97495.0,0.20513781]
[1763111199240,0.03934,97497.0,97495.0,0.20513781]
[1763111200058,0.001,97497.0,97495.0,0.20513781]
[1763111200468,0.001,97497.0,97495.0,0.20513678]
[1763111201645,0.001,97497.0,97496.0,0.323]
[1763111201985,0.00147776,97497.0,97496.0,0.323]
[1763111203541,0.00047776,97497.0,97496.0,0.323]
[1763111203692,0.00147776,97497.0,97496.0,0.323]
[1763111203893,0.00147776,97497.0,97496.0,0.52813662]
[1763111206630,0.00047776,97497.0,97496.0,0.52813662]
[1763111206829,0.00047776,97497.0,97496.0,0.52913662]
[1763111208248,0.00047776,97497.0,97496.0,0.55991438]
[1763111208474,0.00047776,97497.0,97496.0,0.23691438]
[1763111208636,0.00047776,97497.0,97496.0,0.20613662]
[1763111209171,0.00047776,97497.0,97496.0,0.20513662]
[1763111209536,0.00047776,97497.0,97496.0,0.32925662]
[1763111210173,0.00047776,97497.0,97496.0,0.32825662]
[1763111210369,0.00047776,97497.0,97496.0,0.20513662]
[1763111210569,0.00047776,97497.0,97496.0,0.33025662]
[1763111211531,0.00047776,97497.0,97496.0,0.32925662]
[1763111211772,0.00047776,97497.0,97496.0,0.65125662]
[1763111212091,0.00047776,97497.0,97496.0,0.65225662]
[1763111213084,0.00047776,97497.0,97496.0,0.53013662]
[1763111213208,0.00047776,97497.0,97496.0,0.65325662]
[1763111213408,0.00047776,97497.0,97496.0,0.65125662]
[1763111213736,0.00047776,97497.0,97496.0,0.65225662]
[1763111214859,0.00047776,97497.0,97496.0,0.65125662]
[1763111215009,0.00047776,97497.0,97496.0,0.52813662]
[1763111215215,0.00047776,97497.0,97496.0,0.52913662]
[1763111215419,0.08993776,97497.0,97496.0,0.324]
[1763111215659,0.29507227,97497.0,97496.0,0.324]
[1763111216019,0.08993776,97497.0,97496.0,0.324]
[1763111216271,0.08993776,97497.0,97496.0,0.52913662]
[1763111216470,0.08993776,97497.0,97496.0,0.323]
[1763111216768,0.08993776,97497.0,97496.0,0.324]
[1763111218042,0.08993776,97497.0,97496.0,0.323]
[1763111219280,0.29607227,97497.0,97496.0,0.323]
[1763111220611,0.09093776,97497.0,97480.0,0.22]
[1763111220826,0.2051783,97477.0,97470.0,0.22]
[1763111221028,0.01246,97481.0,97479.0,0.323]
[1763111221296,0.01246,97481.0,97480.0,0.20517029]
[1763111221477,0.03934,97497.0,97480.0,0.2]
[1763111221720,0.03934,97497.0,97490.0,0.02]
[1763111221887,0.20514407,97493.0,97490.0,0.02]
[1763111222229,0.20514528,97492.0,97490.0,0.02]
[1763111222434,0.03834,97497.0,97490.0,0.02]
[1763111222637,0.03834,97497.0,97495.0,0.20513815]
[1763111223066,0.03834,97497.0,97496.0,0.323]
[1763111223471,0.08759,97497.0,97484.0,0.323]
[1763111223711,0.20515864,97486.0,97484.0,0.323]
[1763111224207,0.20515834,97486.0,97484.0,0.323]
[1763111224417,0.04925,97485.0,97484.0,0.323]
[1763111224638,0.20514912,97491.0,97481.0,0.52816795]
[1763111224869,0.20514714,97491.0,97482.0,0.323]
[1763111225104,0.20515465,97488.0,97483.0,0.20516267]
[1763111225268,0.20515465,97488.0,97484.0,0.20516082]
[1763111225411,0.205156,97487.0,97483.0,0.20516267]
[1763111225623,0.20516277,97484.0,97482.0,0.323]
[1763111225822,0.08608,97483.0,97482.0,0.323]
[1763111226663,0.08608,97483.0,97466.0,0.18609783]
[1763111226664,0.20518882,97472.0,97471.0,0.323]
[1763111226911,0.08608,97483.0,97464.0,0.03078958]
[1763111226912,0.20520102,97466.0,97464.0,0.03078958]
[1763111227026,0.06896,97471.0,97460.0,0.42521113]
[1763111227027,0.11821,97471.0,97460.0,0.42521113]
[1763111227229,0.20520764,97463.0,97460.0,0.02]
[1763111227431,0.20520764,97463.0,97460.0,0.343]
[1763111227688,0.20520764,97463.0,97460.0,0.54821224]
[1763111227893,0.11821,97471.0,97460.0,0.543]
[1763111228154,0.20520929,97462.0,97461.0,0.001]
[1763111228327,0.20520308,97465.0,97462.0,0.323]
[1763111228588,0.20520491,97464.0,97461.0,0.323]
[1763111228805,0.04742,97462.0,97461.0,0.324]
[1763111228975,0.04742,97462.0,97461.0,0.002]
[1763111229198,0.04742,97462.0,97461.0,0.001]
[1763111229613,0.20522673,97454.0,97451.0,0.323]
[1763111230242,0.03457,97460.0,97457.0,0.323]
[1763111230690,0.2526366,97458.0,97457.0,0.323]
[1763111231322,0.2526366,97458.0,97449.0,0.22370527]
[1763111231323,0.20522589,97454.0,97451.0,0.323]
[1763111231534,0.04742,97458.0,97451.0,0.323]
[1763111231937,0.20522822,97453.0,97451.0,0.323]
[1763111232338,0.20522737,97455.0,97452.0,0.323]
[1763111232655,0.03457,97460.0,97458.0,0.20521565]
[1763111232855,0.03457,97460.0,97458.0,0.20521648]
[1763111233685,0.23975382,97474.0,97471.0,0.20518878]
[1763111233897,0.23975382,97474.0,97460.0,0.22]
[1763111233898,0.23975382,97474.0,97470.0,0.20518994]
[1763111234068,0.10091,97474.0,97472.0,0.20518667]
[1763111234326,0.03457,97489.0,97480.0,0.02]
[1763111234495,0.03457,97489.0,97486.0,0.20515637]
[1763111236169,0.04742,97487.0,97480.0,0.22]
[1763111236386,0.20517029,97480.0,97475.0,0.20518049]
[1763111236619,0.08199,97481.0,97470.0,0.22]
[1763111236818,0.03457,97481.0,97479.0,0.20517117]
[1763111237398,0.03457,97481.0,97480.0,0.02]
[1763111237784,0.00023891,97488.0,97481.0,0.20516818]
[1763111238028,0.00023891,97488.0,97486.0,0.20515643]
[1763111238425,0.001,97487.0,97486.0,0.20515643]
[1763111238627,0.001,97487.0,97486.0,0.22042643]
[1763111238827,0.00023891,97488.0,97486.0,0.22042643]
[1763111239143,0.00123891,97488.0,97486.0,0.22042643]
[1763111239892,0.04742,97487.0,97481.0,0.323]
[1763111240093,0.25257815,97486.0,97481.0,0.323]
[1763111240294,0.25257815,97486.0,97483.0,0.323]
[1763111240489,0.20516007,97485.0,97482.0,0.52816502]
[1763111240711,0.04742,97486.0,97482.0,0.52816502]
[1763111240920,0.00023891,97488.0,97482.0,0.323]
[1763111241157,0.04742,97483.0,97482.0,0.323]
[1763111241358,0.00023891,97488.0,97485.0,0.2051585]
[1763111241854,0.00023891,97488.0,97482.0,0.323]
[1763111241855,0.20515976,97485.0,97482.0,0.323]
[1763111242078,0.04742,97483.0,97482.0,0.323]
[1763111242753,0.04742,97483.0,97460.0,0.01026061]
[1763111242754,0.04742,97483.0,97460.0,0.23026061]
[1763111242958,0.00023891,97488.0,97460.0,0.23026061]
[1763111242959,0.04742,97467.0,97460.0,0.22]
[1763111243163,0.03457,97461.0,97460.0,0.02]
[1763111243439,0.01121734,97461.0,97460.0,0.343]
[1763111243632,0.01121734,97461.0,97460.0,0.323]
[1763111243943,0.03457,97482.0,97460.0,0.323]
[1763111243944,0.03457,97482.0,97465.0,0.323]
[1763111244154,0.20521028,97461.0,97460.0,0.001]
[1763111244357,0.20521028,97461.0,97431.0,0.12833783]
[1763111244358,0.20527136,97432.0,97431.0,0.12833783]
[1763111244575,0.20527558,97430.0,97420.0,0.02]
[1763111244777,0.25269558,97430.0,97416.0,0.12833783]
[1763111244991,0.25269558,97430.0,97400.0,0.2004]
[1763111244992,0.20532405,97407.0,97406.0,0.12833783]
[1763111245189,0.20531247,97413.0,97406.0,0.12833783]
[1763111245395,0.2053087,97415.0,97401.0,0.323]
[1763111245396,0.03457,97415.0,97401.0,0.323]
[1763111245831,0.03457,97415.0,97413.0,0.20531134]
[1763111246170,0.06634,97421.0,97401.0,0.323]
[1763111246171,0.03457,97421.0,97420.0,0.20529665]
[1763111246309,0.03457,97421.0,97418.0,0.20529969]
[1763111246756,0.03457,97421.0,97419.0,0.20529722]
[1763111247198,0.30616632,97440.0,97420.0,0.2]
[1763111247350,0.23982632,97440.0,97421.0,0.20529454]
[1763111247551,0.20529205,97423.0,97414.0,0.02335]
[1763111247753,0.08199,97421.0,97414.0,0.34635]
[1763111247956,0.08199,97421.0,97414.0,0.323]
[1763111248138,0.28828608,97421.0,97417.0,0.323]
[1763111248339,0.20529965,97419.0,97416.0,0.323]
[1763111248568,0.04742,97411.0,97400.0,0.43600372]
[1763111248786,0.03557,97421.0,97400.0,0.0204]
[1763111248787,0.20532789,97406.0,97400.0,0.0204]
[1763111248982,0.24427616,97407.0,97401.0,0.323]
[1763111249143,0.03895,97407.0,97403.0,0.20533143]
[1763111249348,0.04742,97402.0,97401.0,0.323]
[1763111249554,0.20531459,97412.0,97401.0,0.323]
[1763111249756,0.06634,97418.0,97409.0,0.2053185]
[1763111249939,0.06634,97418.0,97414.0,0.001]
[1763111250135,0.06634,97418.0,97401.0,0.323]
[1763111250346,0.2053015,97418.0,97412.0,0.20531141]
[1763111250585,0.205307,97416.0,97412.0,0.20531141]
[1763111250804,0.20530378,97417.0,97413.0,0.2053107]
[1763111251007,0.20530287,97418.0,97409.0,0.20531983]
[1763111251232,0.2053121,97413.0,97404.0,0.20532856]
[1763111251363,0.06995,97418.0,97401.0,0.323]
[1763111251582,0.20530922,97415.0,97401.0,0.323]
[1763111251789,0.20531415,97412.0,97409.0,0.20531868]
[1763111252012,0.20531415,97412.0,97408.0,0.20532129]
[1763111252210,0.20531014,97414.0,97408.0,0.20532129]
[1763111252385,0.20531214,97413.0,97409.0,0.20531909]
[1763111252729,0.06995,97417.0,97401.0,0.323]
[1763111253111,0.06995,97417.0,97404.0,0.001]
[1763111253311,0.20532826,97405.0,97404.0,0.001]
[1763111253541,0.20532826,97405.0,97401.0,0.323]
[1763111253542,0.20533459,97402.0,97401.0,0.323]
[1763111253713,0.24526459,97402.0,97400.0,0.0004]
[1763111253916,0.04279,97401.0,97400.0,0.0004]
[1763111255446,0.04314282,97401.0,97400.0,0.0004]
[1763111255659,0.04382,97401.0,97400.0,0.0004]
[1763111255854,0.08723874,97401.0,97400.0,0.0004]
[1763111256258,0.08723874,97401.0,97400.0,0.02117074]
[1763111256457,0.17995104,97401.0,97400.0,0.02117074]
[1763111256663,0.17895104,97401.0,97400.0,0.02117074]
[1763111256998,0.17995104,97401.0,97400.0,0.02117074]
[1763111257389,0.17895104,97401.0,97400.0,0.02117074]
[1763111257589,0.17895104,97401.0,97390.0,0.0004]
[1763111257590,0.24877652,97391.0,97390.0,0.0004]
[1763111257735,0.32198652,97391.0,97390.0,0.0204]
[1763111258196,0.27856778,97391.0,97390.0,0.00066583]
[1763111259468,0.27856778,97391.0,97390.0,0.02066583]
[1763111259659,0.27956778,97391.0,97390.0,0.00066583]
[1763111259858,0.27856778,97391.0,97390.0,0.00066583]
[1763111260384,0.27956778,97391.0,97390.0,0.00066583]
[1763111261126,0.07421,97391.0,97390.0,0.00066583]
[1763111261269,0.27956778,97391.0,97390.0,0.00066583]
[1763111261469,0.03513,97391.0,97390.0,0.00066583]
[1763111262118,0.07795,97391.0,97390.0,0.00066583]
[1763111262525,0.07895,97391.0,97390.0,0.00066583]
[1763111262725,0.07895,97391.0,97390.0,0.02066583]
[1763111262949,0.21508104,97391.0,97390.0,0.02066583]
[1763111263136,0.12236874,97391.0,97390.0,0.02066583]
[1763111263456,0.12236874,97391.0,97390.0,0.00066583]
[1763111263587,0.12036874,97391.0,97390.0,0.00066583]
[1763111263782,0.12136874,97391.0,97390.0,0.00066583]
[1763111264035,0.12236874,97391.0,97390.0,0.00066583]
[1763111264213,0.12136874,97391.0,97390.0,0.00066583]
[1763111264387,0.12036874,97391.0,97390.0,0.00066583]
[1763111264589,0.12236874,97391.0,97390.0,0.00066583]
[1763111265440,0.12236874,97391.0,97390.0,0.02066583]
[1763111265640,0.21608104,97391.0,97390.0,0.00066583]
[1763111265884,0.29929496,97391.0,97390.0,0.00066583]
[1763111266101,0.21608104,97391.0,97390.0,0.00066583]
[1763111269354,0.12336874,97391.0,97390.0,0.02066583]
[1763111269564,0.24878285,97389.0,97380.0,0.0004]
[1763111269792,0.28831761,97381.0,97380.0,0.0204]
[1763111269944,0.28831761,97381.0,97380.0,0.0004]
[1763111270771,0.24859653,97381.0,97380.0,0.0204]
[1763111271118,0.29141653,97381.0,97380.0,0.0204]
[1763111271336,0.20542106,97361.0,97360.0,0.0004]
[1763111271559,0.24537106,97361.0,97360.0,0.0204]
[1763111272395,0.24537106,97361.0,97360.0,0.0004]
[1763111273220,0.24637106,97361.0,97360.0,0.0004]
[1763111274394,0.04095,97361.0,97360.0,0.0004]
[1763111274807,0.24637106,97361.0,97360.0,0.0004]
[1763111275356,0.24537106,97361.0,97360.0,0.0004]
[1763111275714,0.24537106,97361.0,97360.0,0.0011978]
[1763111276783,0.26455295,97361.0,97360.0,0.0011978]
[1763111276987,0.26555295,97361.0,97360.0,0.0011978]
[1763111279268,0.30897169,97361.0,97360.0,0.0211978]
[1763111279469,0.30797169,97361.0,97360.0,0.0211978]
[1763111279803,0.30897169,97361.0,97360.0,0.0211978]
[1763111280338,0.40168399,97361.0,97360.0,0.0211978]
[1763111280546,0.01027221,97350.0,97320.0,0.0204]
[1763111280756,0.06742,97321.0,97320.0,0.0004]
[1763111281003,0.03241,97328.0,97320.0,0.0004]
[1763111281192,0.07668,97321.0,97320.0,0.0004]
[1763111282218,0.03241,97321.0,97320.0,0.0004]
[1763111282422,0.03241,97321.0,97320.0,0.0204]
[1763111282638,0.03241,97321.0,97320.0,0.0004]
[1763111282811,0.07668,97321.0,97320.0,0.0004]
[1763111283225,0.07768,97321.0,97320.0,0.0004]
[1763111286112,0.07768,97321.0,97320.0,0.00146432]
[1763111291691,0.07768,97321.0,97320.0,0.02146432]
[1763111291890,0.07768,97321.0,97320.0,0.00146432]
[1763111293325,0.07768,97321.0,97320.0,0.02146432]
[1763111293572,0.12109874,97321.0,97320.0,0.02146432]
[1763111294655,0.12109874,97321.0,97320.0,0.00146432]
[1763111296836,0.07768,97321.0,97320.0,0.00146432]
[1763111297700,0.001,97321.0,97320.0,0.00146432]
[1763111297846,0.001,97321.0,97320.0,0.02146432]
[1763111298242,0.001,97321.0,97320.0,0.00146432]
[1763111298481,0.04366,97321.0,97320.0,0.00146432]
[1763111299467,0.04266,97321.0,97320.0,0.00146432]
[1763111300203,0.24816549,97321.0,97320.0,0.00146432]
[1763111300720,0.24916549,97321.0,97320.0,0.00146432]
[1763111303028,0.29258423,97321.0,97320.0,0.00146432]
[1763111303887,0.29258423,97321.0,97320.0,0.02146432]
[1763111304058,0.20552661,97311.0,97310.0,0.0004]
[1763111304280,0.27921661,97311.0,97310.0,0.0004]
[1763111304601,0.27921661,97311.0,97310.0,0.00066615]
[1763111305431,0.28021661,97311.0,97310.0,0.00066615]
[1763111306852,0.32563535,97311.0,97310.0,0.01967047]
[1763111307272,0.34483794,97311.0,97310.0,0.01967047]
[1763111308027,0.32563535,97311.0,97310.0,0.00066615]
[1763111308212,0.34483653,97311.0,97310.0,0.00066615]
[1763111309120,0.07669,97311.0,97310.0,0.00066615]
[1763111309571,0.07669,97311.0,97310.0,0.20619487]
[1763111309983,0.28221661,97311.0,97310.0,0.00066615]
[1763111310184,0.27921661,97311.0,97310.0,0.00066615]
[1763111310393,0.28021661,97311.0,97310.0,0.00066615]
[1763111310593,0.28121661,97311.0,97310.0,0.00066615]
[1763111310795,0.07469,97311.0,97310.0,0.00066615]
[1763111311192,0.28021661,97311.0,97310.0,0.00066615]
[1763111311428,0.001,97311.0,97310.0,0.20619487]
[1763111311846,0.09011,97328.0,97311.0,0.323]
[1763111312047,0.01922187,97327.0,97311.0,0.323]
[1763111312161,0.20550415,97322.0,97311.0,0.32323953]
[1763111312364,0.0577,97327.0,97311.0,0.32323953]
[1763111312567,0.03241,97328.0,97311.0,0.32323953]
[1763111312568,0.03241,97328.0,97325.0,0.20549704]
[1763111312782,0.08873,97335.0,97326.0,0.01797]
[1763111312783,0.03103,97335.0,97326.0,0.01797]
[1763111312988,0.01922417,97334.0,97331.0,0.20548358]
[1763111313222,0.01922417,97333.0,97332.0,0.20548194]
[1763111313667,0.01922417,97333.0,97326.0,0.01797]
[1763111313865,0.20549211,97328.0,97326.0,0.01797]
[1763111314070,0.20549211,97328.0,97321.0,0.323]
[1763111314272,0.20549211,97328.0,97324.0,0.20549886]
[1763111314472,0.20548737,97330.0,97326.0,0.20549481]
[1763111314677,0.03103,97335.0,97321.0,0.323]
[1763111314678,0.20548038,97333.0,97321.0,0.323]
[1763111314897,0.0577,97348.0,97338.0,0.20546785]
[1763111315068,0.2631493,97348.0,97337.0,0.20547109]
[1763111315270,0.001,97333.0,97320.0,0.02]
[1763111315522,0.20548226,97332.0,97324.0,0.323]
[1763111315665,0.03994,97333.0,97324.0,0.52849894]
[1763111315869,0.20548925,97329.0,97324.0,0.52849894]
[1763111316107,0.03994,97333.0,97322.0,0.323]
[1763111316286,0.03075,97335.0,97333.0,0.2054783]
[1763111316575,0.03075,97335.0,97334.0,0.20547804]
[1763111317016,0.0002,97520.0,97343.0,0.20545904]
[1763111317017,0.20544863,97348.0,97343.0,0.20545904]
[1763111317219,0.30811036,97368.0,97344.0,0.01012]
[1763111317220,0.03075,97362.0,97344.0,0.01012]
[1763111317375,0.03075,97362.0,97347.0,0.03924]
[1763111317577,0.20543298,97356.0,97349.0,0.323]
[1763111317819,0.23616938,97362.0,97344.0,0.01012]
[1763111318016,0.23616938,97362.0,97350.0,0.02]
[1763111318017,0.03075,97362.0,97350.0,0.02]
[1763111318221,0.03075,97362.0,97350.0,0.22]
[1763111318679,0.03075,97362.0,97358.0,0.2054261]
[1763111318876,0.03248483,97369.0,97361.0,0.22338895]
[1763111319079,0.00173483,97369.0,97367.0,0.20540832]
[1763111319390,0.00173483,97369.0,97361.0,0.01797]
[1763111319659,0.03075,97367.0,97361.0,0.01797]
[1763111319855,0.00173483,97369.0,97366.0,0.20541051]
[1763111320072,0.00173483,97369.0,97368.0,0.20540629]
[1763111320513,0.00173483,97369.0,97368.0,0.52840629]
[1763111322552,0.00173483,97369.0,97368.0,1.10907516]
[1763111322767,0.00173483,97369.0,97368.0,1.05838416]
[1763111323563,0.00173483,97369.0,97368.0,1.05938416]
[1763111323773,0.00173483,97369.0,97368.0,1.05838416]
[1763111324272,0.0577,97414.0,97390.0,0.4]
[1763111324417,0.20531916,97410.0,97391.0,0.323]
[1763111324621,0.20532072,97409.0,97391.0,0.323]
[1763111324988,0.20534426,97398.0,97391.0,0.20535614]
[1763111325150,0.20533567,97402.0,97398.0,0.323]
[1763111325370,0.03075,97418.0,97398.0,0.323]
[1763111325690,0.20533037,97404.0,97403.0,0.323]
[1763111326099,0.03994,97404.0,97391.0,0.323]
[1763111326322,0.2053438,97398.0,97391.0,0.52835684]
[1763111326462,0.20534591,97397.0,97393.0,0.323]
[1763111326669,0.2053484,97396.0,97393.0,0.323]
[1763111326871,0.03075,97405.0,97396.0,0.323]
[1763111327066,0.03075,97405.0,97390.0,0.22]
[1763111327273,0.03075,97405.0,97391.0,0.323]
[1763111327473,0.23607894,97405.0,97401.0,0.323]
[1763111327896,0.03994,97402.0,97397.0,0.20534469]
[1763111328127,0.03994,97402.0,97399.0,0.20533981]
[1763111328575,0.03994,97402.0,97400.0,0.20533704]
[1763111329071,0.03994,97402.0,97398.0,0.20533872]
[1763111329293,0.03994,97402.0,97399.0,0.2053392]
[1763111329494,0.04094,97402.0,97400.0,0.20533756]
[1763111329971,0.03994,97401.0,97399.0,0.2053398]
[1763111330337,0.04079064,97401.0,97398.0,0.20534254]
[1763111330541,0.0407375,97399.0,97395.0,0.323]
[1763111330781,0.03994,97399.0,97395.0,0.52834888]
[1763111331161,0.24528131,97399.0,97395.0,0.323]
[1763111331397,0.03994,97399.0,97397.0,0.20534412]
[1763111331602,0.001,97402.0,97400.0,0.20533707]
[1763111331838,0.03075,97405.0,97404.0,0.20533037]
[1763111332045,0.0577,97414.0,97409.0,0.20531829]
[1763111332366,0.0577,97414.0,97400.0,0.22533707]
[1763111332367,0.03075,97426.0,97413.0,0.38021]
[1763111332590,0.0577,97424.0,97413.0,0.34097]
[1763111332762,0.03075,97426.0,97413.0,0.34097]
[1763111332967,0.03075,97426.0,97423.0,0.2052898]
[1763111333475,0.03075,97432.0,97429.0,0.20527618]
[1763111333701,0.03075,97432.0,97430.0,0.20527485]
[1763111334519,0.03080697,97478.0,97430.0,0.20527485]
[1763111334520,0.0577,97466.0,97452.0,0.20522749]
[1763111334717,0.03075,97459.0,97451.0,0.02764]
[1763111334923,0.0577,97466.0,97451.0,0.02764]
[1763111335095,0.20520282,97465.0,97457.0,0.20521781]
[1763111335292,0.0577,97466.0,97458.0,0.20521451]
[1763111335497,0.0577,97466.0,97450.0,0.03900432]
[1763111335498,0.03075,97462.0,97450.0,0.343]
[1763111335701,0.03075,97462.0,97458.0,0.2052164]
[1763111336037,0.03075,97462.0,97456.0,0.20521657]
[1763111336185,0.0012,97460.0,97458.0,0.20521579]
[1763111336809,0.0012,97460.0,97456.0,0.20521657]
[1763111337008,0.0012,97460.0,97457.0,0.20521742]
[1763111337249,0.2064124,97460.0,97450.0,0.24423666]
[1763111337556,0.20523122,97452.0,97450.0,0.02]
[1763111337753,0.20522928,97454.0,97448.0,0.52823692]
[1763111337892,0.20522081,97456.0,97450.0,0.323]
[1763111338094,0.20521802,97458.0,97453.0,0.20522566]
[1763111338297,0.2052156,97459.0,97452.0,0.20522852]
[1763111338497,0.2052156,97459.0,97450.0,0.323]
[1763111338679,0.2052166,97458.0,97450.0,0.323]
[1763111338884,0.0002,97460.0,97450.0,0.01900432]
[1763111339085,0.20522292,97455.0,97450.0,0.323]
[1763111339289,0.20522798,97453.0,97450.0,0.323]
[1763111339491,0.0002,97460.0,97450.0,0.54723756]
[1763111339687,0.2052145,97459.0,97453.0,0.20522585]
[1763111340022,0.0002,97460.0,97457.0,0.20521801]
[1763111340227,0.0002,97460.0,97458.0,0.20521582]
[1763111340789,0.03837,97459.0,97458.0,0.2052166]
[1763111340989,0.0002,97460.0,97456.0,0.20522081]
[1763111341384,0.0002,97460.0,97459.0,0.5675945]
[1763111341724,0.0002,97460.0,97459.0,0.6241645]
[1763111341917,0.0002,97460.0,97459.0,0.5675945]